bitfinex/quotes_BTCUSD_20240627
["timestamp","ask_amount","ask_price","bid_price","bid_amount"]
[1719492577310,6.94218475,61267.0,61266.0,0.00852288]
[1719492577546,6.77789271,61267.0,61266.0,0.00852288]
[1719492577925,6.97789271,61267.0,61266.0,0.00852288]
[1719492578788,6.77789271,61267.0,61266.0,0.00852288]
[1719492579049,2.71518873,61267.0,61266.0,0.00852288]
[1719492579294,2.69223773,61267.0,61266.0,0.00852288]
[1719492579712,3.34335042,61267.0,61266.0,0.00852288]
[1719492580391,3.36635042,61267.0,61266.0,0.00852288]
[1719492584223,3.56635042,61267.0,61266.0,0.00852288]
[1719492584430,4.50836472,61267.0,61266.0,0.00852288]
[1719492584628,4.34394042,61267.0,61266.0,8.8e-07]
[1719492584831,3.45036942,61267.0,61266.0,8.8e-07]
[1719492585053,3.77680942,61267.0,61266.0,8.8e-07]
[1719492588126,3.94900942,61267.0,61266.0,8.8e-07]
[1719492589778,3.61447571,61267.0,61266.0,8.8e-07]
[1719492589924,3.28803571,61267.0,61266.0,8.8e-07]
[1719492590133,3.08803571,61267.0,61266.0,8.8e-07]
[1719492590339,2.78023571,61267.0,61266.0,8.8e-07]
[1719492590547,2.94461799,61267.0,61266.0,8.8e-07]
[1719492590747,2.94256942,61267.0,61266.0,8.8e-07]
[1719492590954,2.20863571,61267.0,61266.0,8.8e-07]
[1719492591131,2.20863571,61267.0,61266.0,0.10180088]
[1719492591132,1.63639502,61267.0,61266.0,0.10180088]
[1719492591532,1.78709727,61267.0,61266.0,0.10180088]
[1719492591758,3.21823402,61267.0,61266.0,0.10180088]
[1719492592160,2.80785902,61267.0,61266.0,0.10180088]
[1719492592357,2.81243251,61267.0,61266.0,0.10180088]
[1719492592946,2.95856479,61267.0,61266.0,8.8e-07]
[1719492593169,1.78710079,61267.0,61266.0,8.8e-07]
[1719492593801,1.64096851,61267.0,61266.0,8.8e-07]
[1719492593993,1.78710079,61267.0,61266.0,8.8e-07]
[1719492594603,1.64096851,61267.0,61266.0,8.8e-07]
[1719492594754,2.2920812,61267.0,61266.0,8.8e-07]
[1719492594956,3.4881712,61267.0,61266.0,8.8e-07]
[1719492595157,3.44324823,61267.0,61266.0,8.8e-07]
[1719492595371,3.44206942,61267.0,61266.0,8.8e-07]
[1719492595980,3.76850942,61267.0,61266.0,8.8e-07]
[1719492597401,3.40617571,61267.0,61266.0,8.8e-07]
[1719492597607,2.60483571,61267.0,61266.0,8.8e-07]
[1719492598431,2.60483571,61267.0,61266.0,0.00397016]
[1719492598631,2.80483571,61267.0,61266.0,0.00397016]
[1719492598871,6.37196971,61267.0,61266.0,0.00397016]
[1719492599096,7.02176942,61267.0,61266.0,1.6e-07]
[1719492599285,4.09992523,61267.0,61266.0,1.6e-07]
[1719492599486,3.93550942,61267.0,61266.0,1.6e-07]
[1719492601719,3.53457571,61267.0,61266.0,1.6e-07]
[1719492602118,3.03593571,61267.0,61266.0,1.6e-07]
[1719492602725,3.20813571,61267.0,61266.0,1.6e-07]
[1719492602953,3.53457571,61267.0,61266.0,1.6e-07]
[1719492606664,2.73073571,61267.0,61266.0,1.6e-07]
[1719492606864,2.69306942,61267.0,61266.0,1.6e-07]
[1719492607070,2.56716942,61267.0,61266.0,1.6e-07]
[1719492607276,1.59486673,61267.0,61266.0,1.6e-07]
[1719492607794,1.59029324,61267.0,61266.0,1.6e-07]
[1719492608004,1.59029324,61267.0,61266.0,0.12790016]
[1719492608645,2.59824824,61267.0,61266.0,0.12790016]
[1719492609003,2.49824824,61267.0,61266.0,0.12790016]
[1719492609214,1.77663524,61267.0,61266.0,0.12790016]
[1719492609415,1.76263524,61267.0,61266.0,0.23470016]
[1719492610040,1.77363524,61267.0,61266.0,0.23570016]
[1719492610456,1.87363524,61267.0,61266.0,0.23570016]
[1719492610821,1.87363524,61267.0,61266.0,0.24112667]
[1719492610822,1.54719524,61267.0,61266.0,0.24112667]
[1719492611280,1.26085324,61267.0,61266.0,0.24112667]
[1719492611486,1.64535724,61267.0,61266.0,0.24112667]
[1719492612795,1.26085324,61267.0,61266.0,0.23670016]
[1719492613209,1.26085324,61267.0,61266.0,0.23970016]
[1719492613615,1.59186673,61267.0,61266.0,0.23970016]
[1719492613822,1.59186673,61267.0,61266.0,0.00500016]
[1719492613823,3.18849524,61267.0,61266.0,0.00500016]
[1719492614030,3.33495816,61267.0,61266.0,0.00500016]
[1719492614229,3.33495631,61267.0,61266.0,0.00500016]
[1719492614525,2.84493931,61267.0,61266.0,0.00500016]
[1719492614737,2.60947673,61267.0,61266.0,0.00500016]
[1719492614894,2.26746324,61267.0,61266.0,0.00400016]
[1719492615091,2.26746324,61267.0,61266.0,0.13240016]
[1719492615339,2.28867506,61267.0,61266.0,0.13240016]
[1719492615594,1.41061924,61267.0,61266.0,0.23612667]
[1719492615939,1.34925324,61267.0,61266.0,0.23212667]
[1719492616326,1.34925324,61267.0,61266.0,0.23312667]
[1719492616581,1.34925324,61267.0,61266.0,0.22770016]
[1719492616991,1.34925324,61267.0,61266.0,0.22670016]
[1719492617160,1.34925324,61267.0,61266.0,0.23212667]
[1719492617327,1.34925324,61267.0,61266.0,0.23512667]
[1719492617726,1.34778,61267.0,61266.0,0.23170016]
[1719492617943,1.24338,61267.0,61266.0,0.23170016]
[1719492619015,1.24338,61267.0,61266.0,0.23712667]
[1719492619176,1.24338,61267.0,61266.0,0.23412667]
[1719492619567,1.24338,61267.0,61266.0,0.24012667]
[1719492619773,1.26897926,61267.0,61266.0,0.24012667]
[1719492620154,1.26897926,61267.0,61266.0,0.23212667]
[1719492620361,1.26897926,61267.0,61266.0,0.24312667]
[1719492620817,0.94253926,61267.0,61266.0,0.24712667]
[1719492621016,1.2704525,61267.0,61266.0,0.24170016]
[1719492621239,1.36808022,61267.0,61266.0,0.24170016]
[1719492621440,1.5968925,61267.0,61266.0,0.24170016]
[1719492621673,1.26897926,61267.0,61266.0,0.23770016]
[1719492621876,1.26897926,61267.0,61266.0,0.25112667]
[1719492621877,1.26997926,61267.0,61266.0,0.25112667]
[1719492622309,1.2714525,61267.0,61266.0,0.25112667]
[1719492623006,1.26997926,61267.0,61266.0,0.25112667]
[1719492623427,1.2714525,61267.0,61266.0,0.25112667]
[1719492625634,1.26997926,61267.0,61266.0,0.25112667]
[1719492626054,1.2714525,61267.0,61266.0,0.25112667]
[1719492626716,1.26997926,61267.0,61266.0,0.25112667]
[1719492627776,1.2714525,61267.0,61266.0,0.25112667]
[1719492627977,1.26997926,61267.0,61266.0,0.25112667]
[1719492628447,1.26997926,61267.0,61266.0,0.24570016]
[1719492628648,1.4254365,61267.0,61266.0,0.24570016]
[1719492629821,1.2714525,61267.0,61266.0,0.24570016]
[1719492630025,1.2714525,61267.0,61266.0,0.25112667]
[1719492630226,1.26997926,61267.0,61266.0,0.25112667]
[1719492631843,1.2714525,61267.0,61266.0,0.25112667]
[1719492632044,1.3368555,61267.0,61266.0,0.25112667]
[1719492632300,1.33538226,61267.0,61266.0,0.25112667]
[1719492632627,1.3368555,61267.0,61266.0,0.25112667]
[1719492633415,1.4774795,61267.0,61266.0,0.24570016]
[1719492634639,1.4774795,61267.0,61266.0,0.01900016]
[1719492635254,1.4774795,61267.0,61266.0,0.02442667]
[1719492638101,0.68250226,61267.0,61266.0,0.44442832]
[1719492638325,0.61709926,61267.0,61266.0,0.44442832]
[1719492638539,0.12743926,61267.0,61266.0,0.46079148]
[1719492639099,0.02743926,61267.0,61266.0,0.46079148]
[1719492639497,0.12743926,61267.0,61266.0,0.46079148]
[1719492639731,0.02743926,61267.0,61266.0,0.66079148]
[1719492640172,0.00084,61268.0,61267.0,0.2]
[1719492640392,0.326354,61283.0,61282.0,0.01542651]
[1719492640634,0.164012,61285.0,61284.0,0.00542651]
[1719492641004,0.490356,61285.0,61284.0,0.00542651]
[1719492641203,0.490356,61285.0,61284.0,0.05343341]
[1719492641440,0.490356,61285.0,61284.0,0.05975456]
[1719492641897,0.00084,61285.0,61284.0,0.23209354]
[1719492642134,0.00084,61285.0,61284.0,0.45309354]
[1719492642977,0.10084,61285.0,61284.0,0.45309354]
[1719492643404,0.10184,61285.0,61284.0,0.46309354]
[1719492644166,0.10184,61285.0,61284.0,0.45309354]
[1719492644557,0.10184,61285.0,61284.0,0.46309354]
[1719492645750,0.10184,61285.0,61284.0,0.45309354]
[1719492645751,0.10084,61285.0,61284.0,0.45309354]
[1719492646235,0.9177,61285.0,61284.0,0.03974766]
[1719492646916,0.9177,61285.0,61284.0,0.01942651]
[1719492647124,0.9177,61285.0,61284.0,0.03342651]
[1719492648055,0.9167,61285.0,61284.0,0.01942651]
[1719492648458,0.590356,61285.0,61284.0,0.41696549]
[1719492648680,0.590356,61285.0,61284.0,0.45966204]
[1719492648883,0.590356,61285.0,61284.0,0.46598319]
[1719492650082,0.590356,61285.0,61284.0,0.45198319]
[1719492650286,0.590356,61285.0,61284.0,0.46598319]
[1719492650555,0.590356,61285.0,61284.0,0.47998319]
[1719492650556,0.591356,61285.0,61284.0,0.47998319]
[1719492651003,0.591356,61285.0,61284.0,0.44728664]
[1719492651417,0.10184,61285.0,61284.0,0.44728664]
[1719492651588,0.265012,61285.0,61284.0,0.44728664]
[1719492653158,0.591356,61285.0,61284.0,0.44728664]
[1719492653368,0.265012,61285.0,61284.0,0.44728664]
[1719492653973,0.265012,61285.0,61284.0,0.44096549]
[1719492654377,0.10184,61285.0,61284.0,0.44727466]
[1719492655450,0.00184,61285.0,61284.0,0.49200213]
[1719492655567,0.00184,61285.0,61284.0,1.46282859]
[1719492655990,0.00184,61285.0,61284.0,1.78917759]
[1719492656628,0.00184,61285.0,61284.0,1.98917759]
[1719492658669,0.00184,61285.0,61284.0,1.46282859]
[1719492658903,0.00084,61285.0,61284.0,1.44882859]
[1719492659123,0.00084,61285.0,61284.0,1.64882859]
[1719492659987,0.00084,61285.0,61284.0,1.23482859]
[1719492660198,0.00084,61285.0,61284.0,1.64882859]
[1719492660849,0.00084,61285.0,61284.0,1.44882859]
[1719492661090,0.00084,61285.0,61284.0,1.63482859]
[1719492661586,0.00084,61285.0,61284.0,1.98917759]
[1719492662402,0.00084,61285.0,61284.0,2.33852659]
[1719492662545,0.00084,61285.0,61284.0,2.47416441]
[1719492662745,0.00084,61285.0,61284.0,2.47416306]
[1719492663244,0.00084,61285.0,61284.0,2.4741616]
[1719492664345,0.00084,61296.0,61295.0,0.24162651]
[1719492664561,0.00084,61296.0,61295.0,0.49707464]
[1719492664789,0.00084,61296.0,61295.0,0.50334244]
[1719492665274,0.00084,61296.0,61295.0,0.70334244]
[1719492665514,0.00084,61296.0,61295.0,1.63137744]
[1719492665696,0.00084,61296.0,61295.0,1.95766744]
[1719492666287,0.00084,61296.0,61295.0,2.41814346]
[1719492666492,0.163083,61319.0,61308.0,0.16311]
[1719492666696,0.163083,61319.0,61318.0,0.00542651]
[1719492666902,0.32616,61320.0,61319.0,0.00542651]
[1719492666903,0.489236,61320.0,61319.0,0.00542651]
[1719492667094,0.489236,61320.0,61319.0,0.16776549]
[1719492667307,0.163078,61320.0,61319.0,0.16776549]
[1719492667500,0.326146,61323.0,61319.0,0.16776549]
[1719492667501,0.171466,61321.0,61319.0,0.17911553]
[1719492667712,0.497618,61321.0,61320.0,0.25803898]
[1719492667915,0.597618,61321.0,61320.0,0.16776549]
[1719492668118,0.271466,61321.0,61320.0,0.17485458]
[1719492668351,0.10839,61321.0,61320.0,0.21678769]
[1719492668626,0.10839,61321.0,61320.0,0.22678769]
[1719492669313,0.00839,61321.0,61320.0,0.22678769]
[1719492669813,0.00839,61321.0,61320.0,0.30809115]
[1719492670559,0.00839,61321.0,61320.0,0.28014451]
[1719492671065,0.00839,61321.0,61320.0,0.28297473]
[1719492671299,0.497618,61321.0,61320.0,0.18884023]
[1719492671541,0.92377,61321.0,61320.0,0.18884023]
[1719492672033,0.92377,61321.0,61320.0,0.18176549]
[1719492672274,0.62319104,61321.0,61320.0,0.22251986]
[1719492672572,0.62319104,61321.0,61320.0,0.22959442]
[1719492672811,0.62319104,61321.0,61320.0,0.18884005]
[1719492675252,0.62319104,61321.0,61320.0,0.20284005]
[1719492675548,0.94934304,61321.0,61320.0,0.20284005]
[1719492675789,0.95081628,61321.0,61320.0,0.20284005]
[1719492676036,0.94934304,61321.0,61320.0,0.20284005]
[1719492676557,0.94934304,61321.0,61320.0,0.19576549]
[1719492676819,0.94934304,61321.0,61320.0,0.028]
[1719492676820,1.49426828,61321.0,61320.0,0.028]
[1719492677218,1.49426828,61321.0,61320.0,0.03342651]
[1719492677633,1.49426828,61321.0,61320.0,0.028]
[1719492677853,2.18935128,61321.0,61320.0,0.028]
[1719492678062,1.86319928,61321.0,61320.0,0.014]
[1719492678481,2.18935128,61321.0,61320.0,0.024]
[1719492679327,2.18935128,61321.0,61320.0,0.02942651]
[1719492679529,2.18935128,61321.0,61320.0,0.01]
[1719492679928,2.18935128,61321.0,61320.0,0.024]
[1719492680357,2.18935128,61321.0,61320.0,0.02942651]
[1719492680562,1.86172604,61321.0,61320.0,0.02942651]
[1719492680771,1.49279504,61321.0,61320.0,0.02942651]
[1719492680986,1.27549504,61321.0,61320.0,0.01942651]
[1719492681203,0.94934304,61321.0,61320.0,0.20748429]
[1719492681433,0.94934304,61321.0,61320.0,0.19448429]
[1719492681646,0.94934304,61321.0,61320.0,0.20066853]
[1719492681879,0.94934304,61321.0,61320.0,0.19966853]
[1719492682082,0.94934304,61321.0,61320.0,0.20466853]
[1719492682288,0.94934304,61321.0,61320.0,0.17894973]
[1719492683552,1.27696828,61321.0,61320.0,0.17894973]
[1719492683805,1.49726828,61321.0,61320.0,0.01118424]
[1719492683956,1.65960199,61321.0,61320.0,0.01118424]
[1719492684152,1.49726828,61321.0,61320.0,0.01118424]
[1719492684355,1.49726828,61321.0,61320.0,0.005]
[1719492685164,1.49626828,61321.0,61320.0,0.005]
[1719492685547,1.49626828,61321.0,61315.0,0.00542651]
[1719492685548,1.14309924,61316.0,61315.0,0.00542651]
[1719492685748,1.24309924,61316.0,61315.0,0.00542651]
[1719492685976,0.489276,61315.0,61314.0,0.00542651]
[1719492686175,0.489276,61315.0,61309.0,0.08130346]
[1719492686176,0.16456724,61314.0,61313.0,0.00542651]
[1719492686426,0.915472,61314.0,61313.0,0.00542651]
[1719492686635,0.89192255,61314.0,61313.0,0.17643849]
[1719492686795,0.263094,61314.0,61313.0,0.30133849]
[1719492686996,0.263094,61314.0,61313.0,0.54520871]
[1719492687419,0.589283,61314.0,61313.0,0.40960196]
[1719492687741,0.589283,61314.0,61313.0,0.54520648]
[1719492688108,0.589283,61314.0,61313.0,0.40960196]
[1719492688529,0.589283,61314.0,61313.0,0.54520718]
[1719492688729,0.589283,61314.0,61313.0,0.40960196]
[1719492688895,0.589283,61314.0,61313.0,0.54520732]
[1719492689095,0.589283,61314.0,61313.0,0.54520744]
[1719492689319,0.589283,61314.0,61313.0,0.40960196]
[1719492689538,0.589283,61314.0,61313.0,0.41560196]
[1719492689743,0.589283,61314.0,61313.0,0.5425342]
[1719492689957,0.589283,61314.0,61313.0,0.01318998]
[1719492689958,1.241661,61314.0,61313.0,0.01318998]
[1719492690363,1.241661,61314.0,61313.0,0.01942651]
[1719492690568,1.241661,61314.0,61313.0,0.18176549]
[1719492690767,1.241661,61314.0,61313.0,0.20210849]
[1719492690936,1.241661,61314.0,61313.0,0.18953213]
[1719492691144,0.1,61314.0,61313.0,0.42223213]
[1719492691397,0.163086,61318.0,61317.0,0.00542651]
[1719492691571,0.589254,61318.0,61317.0,0.36914178]
[1719492691765,0.589254,61318.0,61317.0,0.37705173]
[1719492692185,0.1,61318.0,61317.0,0.59975173]
[1719492692387,0.36011904,61321.0,61320.0,0.01542651]
[1719492692388,0.03396304,61321.0,61320.0,0.01542651]
[1719492692635,0.03396304,61321.0,61320.0,0.54191919]
[1719492692942,0.03396304,61321.0,61320.0,0.74995896]
[1719492693547,0.03396304,61321.0,61320.0,0.41436603]
[1719492693751,0.03396304,61321.0,61320.0,0.54993137]
[1719492693951,0.03396304,61321.0,61320.0,0.71226508]
[1719492694357,0.03396304,61321.0,61320.0,0.91226508]
[1719492694789,0.03396304,61321.0,61320.0,1.61550008]
[1719492694992,0.03396304,61321.0,61320.0,1.63850008]
[1719492695206,0.03396304,61321.0,61320.0,1.87710008]
[1719492696167,0.03396304,61321.0,61320.0,1.89110008]
[1719492696669,0.03396304,61321.0,61320.0,1.89109834]
[1719492696788,0.03396304,61321.0,61320.0,1.87709834]
[1719492696993,0.03396304,61321.0,61320.0,1.86309834]
[1719492697291,0.03396304,61321.0,61320.0,1.87709834]
[1719492697559,0.03396304,61321.0,61320.0,2.50144534]
[1719492697792,0.01449337,61321.0,61320.0,2.28601883]
[1719492697995,0.00211338,61321.0,61320.0,2.50144534]
[1719492698197,0.00839,61329.0,61328.0,1.52890351]
[1719492698374,0.00839,61329.0,61328.0,2.43517304]
[1719492698571,0.00839,61329.0,61328.0,2.44317607]
[1719492698988,0.00839,61329.0,61328.0,1.06809907]
[1719492699152,0.00839,61329.0,61328.0,1.05267256]
[1719492699858,0.00839,61329.0,61328.0,1.05265492]
[1719492700237,0.00839,61329.0,61328.0,0.91710896]
[1719492700445,0.00839,61329.0,61328.0,1.06808166]
[1719492700646,0.00839,61329.0,61328.0,1.26808166]
[1719492701024,0.00839,61329.0,61328.0,1.23113866]
[1719492701228,0.00839,61329.0,61328.0,1.26808166]
[1719492702514,0.00839,61329.0,61328.0,1.43113866]
[1719492702715,0.00839,61329.0,61328.0,2.04601247]
[1719492702927,0.00839,61329.0,61328.0,2.530674]
[1719492704793,0.00839,61329.0,61328.0,2.344674]
[1719492705011,0.00839,61329.0,61328.0,2.544674]
[1719492705950,0.00839,61329.0,61328.0,2.54465116]
[1719492706153,0.00839,61329.0,61328.0,2.56413674]
[1719492706397,0.00839,61329.0,61328.0,2.57813674]
[1719492707086,0.00839,61332.0,61328.0,2.57813674]
[1719492707087,0.00739184,61335.0,61334.0,0.87665751]
[1719492707297,0.00839,61341.0,61337.0,1.75588351]
[1719492707502,0.00839,61341.0,61337.0,2.41074889]
[1719492707910,0.00839,61341.0,61337.0,2.08468189]
[1719492708111,0.00839,61341.0,61337.0,1.1106586]
[1719492708527,0.00839,61341.0,61337.0,0.7106586]
[1719492708733,0.00839,61341.0,61337.0,0.1857012]
[1719492708931,0.171413,61341.0,61337.0,0.1857012]
[1719492709115,0.00839,61341.0,61337.0,0.1857012]
[1719492709532,0.163029,61339.0,61337.0,0.1857012]
[1719492709749,0.163025,61340.0,61337.0,0.1857012]
[1719492709965,0.171413,61341.0,61337.0,0.1857012]
[1719492710165,0.163026,61340.0,61337.0,0.1857012]
[1719492710396,0.171421,61338.0,61337.0,0.1857012]
[1719492710604,0.00839,61338.0,61337.0,0.1857012]
[1719492711036,0.171421,61338.0,61337.0,0.1857012]
[1719492711272,0.00839,61338.0,61337.0,0.1857012]
[1719492711476,0.497483,61338.0,61337.0,0.1757012]
[1719492711702,0.171421,61338.0,61337.0,0.1757012]
[1719492711939,0.00839,61338.0,61337.0,0.1857012]
[1719492712357,0.00839,61338.0,61337.0,0.67730167]
[1719492712579,0.00839,61338.0,61337.0,1.06333467]
[1719492713197,0.00839,61338.0,61337.0,1.07733467]
[1719492713445,0.00839,61338.0,61337.0,1.06333467]
[1719492713616,0.00839,61338.0,61337.0,0.86333467]
[1719492713822,0.00839,61341.0,61340.0,0.01542651]
[1719492714020,0.00839,61341.0,61340.0,0.3400992]
[1719492714232,0.00839,61341.0,61340.0,0.34802744]
[1719492715213,0.00839,61341.0,61340.0,0.36202744]
[1719492715843,0.03395135,61341.0,61340.0,0.36202744]
[1719492716629,0.03395135,61341.0,61340.0,0.19969373]
[1719492716876,0.03395135,61341.0,61340.0,0.21369373]
[1719492717079,0.84906635,61341.0,61340.0,0.20369373]
[1719492717281,1.149551,61341.0,61340.0,0.20369373]
[1719492717485,1.25102424,61341.0,61340.0,0.20369373]
[1719492717684,1.47532424,61341.0,61340.0,0.20369373]
[1719492718020,1.47532424,61341.0,61340.0,0.19576549]
[1719492718429,1.47532424,61341.0,61340.0,0.17633898]
[1719492718652,1.96370395,61341.0,61340.0,0.014]
[1719492718851,1.96370395,61341.0,61340.0,0.028]
[1719492719284,2.18572395,61341.0,61340.0,0.014]
[1719492719489,2.02339024,61341.0,61340.0,0.014]
[1719492719684,2.02339024,61341.0,61340.0,0.023]
[1719492720336,1.80137024,61341.0,61340.0,0.014]
[1719492720770,1.80137024,61341.0,61340.0,0.028]
[1719492721815,1.80137024,61341.0,61340.0,0.03529787]
[1719492723077,1.80137024,61341.0,61340.0,0.01272438]
[1719492723297,0.597459,61341.0,61340.0,0.2732968]
[1719492723414,0.597459,61341.0,61340.0,0.18706336]
[1719492723614,0.597459,61341.0,61340.0,0.17706336]
[1719492723813,0.923505,61341.0,61340.0,0.17706336]
[1719492724018,0.923505,61341.0,61340.0,0.18506336]
[1719492724019,0.10839,61341.0,61340.0,0.18506336]
[1719492724237,0.00839,61341.0,61340.0,0.18506336]
[1719492724638,0.00839,61341.0,61340.0,0.18906336]
[1719492725859,0.497459,61341.0,61340.0,0.17906336]
[1719492726723,0.171413,61341.0,61340.0,0.18906336]
[1719492727135,0.172413,61341.0,61340.0,0.18906336]
[1719492727724,0.00839,61341.0,61340.0,0.18906336]
[1719492729128,0.00839,61341.0,61340.0,0.18090336]
[1719492729353,0.00839,61341.0,61340.0,0.18759914]
[1719492729694,0.00839,61341.0,61340.0,0.29061245]
[1719492730467,0.00839,61341.0,61340.0,0.18359914]
[1719492730844,0.00839,61341.0,61340.0,0.19359914]
[1719492731480,0.171413,61341.0,61340.0,0.18359914]
[1719492731758,0.497459,61341.0,61340.0,0.17359914]
[1719492734678,0.497459,61341.0,61340.0,0.18359914]
[1719492735025,0.497459,61341.0,61340.0,0.19759914]
[1719492735230,0.00839,61341.0,61340.0,0.19759914]
[1719492736021,0.00839,61341.0,61340.0,0.35993285]
[1719492736162,0.00839,61341.0,61340.0,0.94095785]
[1719492736561,0.00839,61341.0,61340.0,0.77793285]
[1719492737590,0.00839,61341.0,61340.0,1.91424985]
[1719492737714,0.00839,61341.0,61340.0,2.24730085]
[1719492737910,0.00839,61341.0,61340.0,2.38281549]
[1719492738787,0.00839,61341.0,61340.0,2.23330085]
[1719492739344,0.00839,61341.0,61340.0,2.22630085]
[1719492739548,0.00839,61341.0,61340.0,2.23730085]
[1719492739978,0.00839,61341.0,61340.0,1.91124985]
[1719492741161,0.00839,61341.0,61340.0,0.58962414]
[1719492741362,0.00839,61341.0,61340.0,0.98962414]
[1719492741564,0.00839,61341.0,61340.0,1.31567514]
[1719492741769,0.00839,61341.0,61340.0,1.30467514]
[1719492742400,0.00839,61341.0,61340.0,0.79262414]
[1719492742603,0.00839,61341.0,61340.0,1.15495785]
[1719492743631,0.00839,61341.0,61340.0,1.48100885]
[1719492744464,0.00839,61341.0,61340.0,1.15495785]
[1719492746913,0.00839,61341.0,61340.0,0.21159914]
[1719492747597,0.00839,61341.0,61340.0,0.20159914]
[1719492747797,0.823505,61341.0,61340.0,0.20159914]
[1719492748012,0.923505,61341.0,61340.0,0.20159914]
[1719492748359,0.597459,61341.0,61340.0,0.20159914]
[1719492749013,0.597459,61341.0,61340.0,0.21159914]
[1719492749233,0.10839,61341.0,61340.0,0.19759914]
[1719492749457,0.10839,61341.0,61340.0,0.21159914]
[1719492749924,0.10839,61341.0,61340.0,0.56062414]
[1719492749925,0.00839,61341.0,61340.0,0.56062414]
[1719492750145,0.00839,61341.0,61340.0,0.35993285]
[1719492750350,0.00839,61341.0,61340.0,0.19759914]
[1719492751065,0.00839,61341.0,61340.0,0.21159914]
[1719492752451,0.497459,61341.0,61340.0,0.20159914]
[1719492752914,0.00839,61341.0,61340.0,0.20159914]
[1719492753155,0.00839,61341.0,61340.0,0.21159914]
[1719492753344,0.171413,61341.0,61340.0,0.21159914]
[1719492753524,0.326033,61344.0,61343.0,0.01456438]
[1719492753701,0.489048,61344.0,61343.0,0.26352197]
[1719492754103,0.489048,61344.0,61343.0,0.27014209]
[1719492754879,0.489031,61346.0,61345.0,0.00456438]
[1719492755047,0.589031,61346.0,61345.0,0.16690336]
[1719492755454,0.589031,61346.0,61345.0,0.17352379]
[1719492755756,0.589031,61346.0,61345.0,0.27832708]
[1719492755955,0.589031,61346.0,61345.0,0.17352379]
[1719492757411,0.588868,61346.0,61345.0,0.17352379]
[1719492758369,0.588868,61346.0,61345.0,0.19752379]
[1719492758589,0.588868,61346.0,61345.0,0.18752379]
[1719492758803,0.588868,61346.0,61345.0,0.19752379]
[1719492759004,0.263009,61346.0,61345.0,0.30626522]
[1719492759305,1.56157476,61346.0,61345.0,0.03462043]
[1719492759467,1.46393924,61346.0,61345.0,0.03462043]
[1719492759668,1.78995824,61346.0,61345.0,0.03462043]
[1719492760109,1.78995824,61346.0,61345.0,0.03918481]
[1719492760905,1.79079824,61346.0,61345.0,0.03918481]
[1719492761580,1.463306,61346.0,61345.0,0.11818474]
[1719492762351,1.463306,61346.0,61345.0,0.03918481]
[1719492764719,1.46477924,61346.0,61345.0,0.03918481]
[1719492764887,1.56240908,61346.0,61345.0,0.03918481]
[1719492765145,1.5868197,61346.0,61345.0,0.03256438]
[1719492765353,1.56242813,61346.0,61345.0,0.03256438]
[1719492765554,1.5868197,61346.0,61345.0,0.03256438]
[1719492765756,1.56245712,61346.0,61345.0,0.03256438]
[1719492766168,1.56098388,61346.0,61345.0,0.03256438]
[1719492766390,1.33958388,61346.0,61345.0,0.11090226]
[1719492766591,0.589868,61346.0,61345.0,0.28324124]
[1719492766806,0.10084,61346.0,61345.0,0.20490336]
[1719492767018,0.10084,61346.0,61345.0,0.21098049]
[1719492768120,0.00084,61346.0,61345.0,0.21098049]
[1719492769679,0.00084,61346.0,61345.0,0.6666142]
[1719492769887,0.00084,61346.0,61345.0,0.8296262]
[1719492770422,0.00084,61346.0,61345.0,0.6666142]
[1719492770629,0.00084,61346.0,61345.0,0.8156262]
[1719492770830,0.00084,61346.0,61345.0,0.8016262]
[1719492771052,0.00084,61346.0,61345.0,1.1276502]
[1719492771252,0.00084,61346.0,61345.0,1.1556502]
[1719492771486,0.00084,61346.0,61345.0,1.1416502]
[1719492771795,0.0084,61356.0,61355.0,0.01456438]
[1719492771994,0.59512114,61356.0,61355.0,0.16690336]
[1719492772344,0.497349,61356.0,61355.0,0.16690336]
[1719492772554,0.59512114,61356.0,61355.0,0.16690336]
[1719492772765,0.823315,61356.0,61355.0,0.16690336]
[1719492772964,1.49237927,61356.0,61355.0,0.16690336]
[1719492773165,1.37015424,61356.0,61355.0,0.16690336]
[1719492773368,1.37015424,61356.0,61355.0,0.16233898]
[1719492774015,1.14239224,61354.0,61353.0,0.00456438]
[1719492774217,1.36460623,61354.0,61353.0,0.00456438]
[1719492774555,1.36460623,61354.0,61352.0,0.00456438]
[1719492774556,0.10147324,61354.0,61352.0,0.00456438]
[1719492774756,1.240937,61353.0,61352.0,0.16690336]
[1719492774954,1.33870805,61353.0,61352.0,0.16690336]
[1719492775814,1.01272605,61353.0,61352.0,0.16690336]
[1719492776159,0.914955,61353.0,61352.0,0.16690336]
[1719492776498,1.01272605,61353.0,61352.0,0.16690336]
[1719492776708,1.01268926,61353.0,61352.0,0.16690336]
[1719492777111,0.85117064,61353.0,61352.0,0.18090336]
[1719492777464,0.91642824,61353.0,61352.0,0.18090336]
[1719492778128,1.01416164,61353.0,61352.0,0.18090336]
[1719492778444,1.24241024,61353.0,61352.0,0.18090336]
[1719492779409,1.24241024,61353.0,61352.0,0.19490336]
[1719492779952,1.36461878,61353.0,61352.0,0.19490336]
[1719492780370,1.24241024,61353.0,61352.0,0.19490336]
[1719492781928,1.240937,61353.0,61352.0,0.19490336]
[1719492782373,1.36314005,61353.0,61352.0,0.19490336]
[1719492783189,1.240937,61353.0,61352.0,0.19490336]
[1719492783389,1.24241024,61353.0,61352.0,0.19490336]
[1719492783594,1.36461946,61353.0,61352.0,0.19490336]
[1719492783806,1.24241024,61353.0,61352.0,0.028]
[1719492784002,1.75422024,61353.0,61352.0,0.028]
[1719492784197,2.11526054,61353.0,61352.0,0.028]
[1719492784462,1.96862024,61353.0,61352.0,0.028]
[1719492786385,1.78279224,61353.0,61352.0,0.028]
[1719492786579,1.78279224,61353.0,61352.0,0.014]
[1719492787041,1.45681024,61353.0,61352.0,0.18090336]
[1719492787249,0.914955,61353.0,61352.0,0.1849937]
[1719492787451,0.914955,61353.0,61352.0,0.1989937]
[1719492787662,0.914955,61353.0,61352.0,0.21705076]
[1719492788087,0.914955,61353.0,61352.0,0.18696042]
[1719492788206,0.914955,61353.0,61352.0,0.17296042]
[1719492788418,0.914955,61353.0,61352.0,0.18296042]
[1719492788613,0.914955,61353.0,61352.0,0.17296042]
[1719492789205,0.914955,61353.0,61352.0,0.18496042]
[1719492790058,0.19770554,61353.0,61352.0,0.19496042]
[1719492790383,0.262991,61353.0,61352.0,0.18496042]
[1719492791341,0.588973,61353.0,61352.0,0.19796042]
[1719492791957,0.588973,61353.0,61352.0,0.18496042]
[1719492792354,0.588973,61353.0,61352.0,0.19896042]
[1719492793481,0.588973,61353.0,61352.0,0.20896042]
[1719492793482,0.1,61353.0,61352.0,0.20896042]